Cogmind - Beta 14 @@@ ROGUE MODE // 2024.10.16 @ 18:07:50 Player: Longball Result: Destroyed by JB-F5G(R) with Subdweller Machine Gun Performance ------------- Evolutions (0) 0 Regions Visited (2) 400 Robots Destroyed (19) 95 Value Destroyed (454) 454 Prototype IDs (0) 0 Alien Tech Used (0) 0 Bonus (0) 0 TOTAL SCORE: 949 Bonus ------- None Cogmind --------- Core Integrity 0/250 Matter 210/300 Energy 110/125 System Corruption 0% Temperature Cool (0) Movement Walking (120) Location -10/Subcaves Parts ------- > --- POWER (1) -------- Light Ion Engine > --- PROPULSION (2) --- Aluminum Leg Aluminum Leg > --- UTILITY (2) ------ Improved Terrain Scanner Terrain Scan Processor > --- WEAPON (2) ------- EM Pulse Gun Light Assault Rifle > --- INVENTORY (5) ---- Compact Wheel Targeting Computer Light Assault Rifle Grenade Launcher Peak State ------------ > --- POWER ------------ Light Ion Engine > --- PROPULSION ------- Aluminum Leg Aluminum Leg > --- UTILITY ---------- Improved Terrain Scanner Terrain Scan Processor > --- WEAPON ----------- Light Assault Rifle Light Assault Rifle > --- INVENTORY -------- Light Ion Engine Compact Wheel Targeting Computer EM Pulse Gun Grenade Launcher [Rating: 10] Favorites ----------- Power Light Ion Engine Engine Light Ion Engine Propulsion Aluminum Leg Leg Aluminum Leg Utility Improved Terrain Scanner Device Improved Terrain Scanner Storage Small Storage Unit Processor Terrain Scan Processor Weapon Light Assault Rifle Energy Gun EM Pulse Gun Ballistic Gun Light Assault Rifle Launcher Grenade Launcher Build | -11 -10 -10 ------- Run | Yrd Mat Sub Slots Evolved . | . . . Power . | . . . Propulsion . | . . . Utility . | . . . Weapon . | . . . Parts Attached 21 | 7 12 2 Power 2 | 1 1 . Engine 2 | 1 1 . Core . | . . . Reactor . | . . . Propulsion 5 | 2 3 . Treads . | . . . Leg 5 | 2 3 . Wheel . | . . . Hover . | . . . Flight . | . . . Utility 4 | 2 2 . Device 2 | 1 1 . Storage 1 | 1 . . Processor 1 | . 1 . Hackware . | . . . Protection . | . . . Artifact . | . . . Weapon 10 | 2 6 2 Energy Gun 1 | . . 1 Energy Cannon . | . . . Ballistic Gun 6 | 2 4 . Ballistic Cannon . | . . . Launcher 3 | . 2 1 Special Weapon . | . . . Impact Weapon . | . . . Slashing Weapon . | . . . Piercing Weapon . | . . . Special Melee Weapon . | . . . Unidentified Prototypes . | . . . Parts Lost 3 | . 3 . Power 1 | . 1 . Propulsion 2 | . 2 . Utility . | . . . Weapon . | . . . Highest Loss Streak 2 | . 2 . To Critical Strikes . | . . . Average Slot Usage (%) 98 | . 97 100 Engine 13 | . 13 14 Leg 26 | . 26 28 Device 13 | . 13 14 Storage 2 | . 2 . Processor 11 | . 11 14 Ballistic Gun 27 | . 27 25 Peak Build Rating 10 | 9 10 10 Average Rating 9 | 5 9 10 On Entrance 6 | . 9 10 Naked Turns . | . . . Heaviest Build 11 | 11 11 8 Greatest Support 20 | 20 20 20 Greatest Overweight (x) 1 | . 1 . Average Overweight (x) . | . . . Largest Inventory Capacity 8 | 8 8 5 Average Capacity 5 | 7 5 5 Most Carried 8 | 6 8 4 Average Carried 4 | 4 4 4 Final Capacity 8 | 8 5 5 Final Carried 6 | 6 4 4 Class Distribution -------------------- 59% | Scavenger-Mutant 40% | Mutant Dominant Class ---------------- Scavenger-Mutant | -10/Materials Scavenger-Mutant | -10/Subcaves Resources | -11 -10 -10 ----------- Run | Yrd Mat Sub Matter Collected 514 | 296 166 52 Remotely . | . . . Salvage Created 457 | 99 338 20 Parts 32 | 7 22 3 Haulers Intercepted . | . . . Recyclers Shooed 1 | 1 . . Parts Field Recycled . | . . . Retrieved Matter . | . . . Parts Self-Destructed 6 | . . 6 Prevented . | . . . Kills | -11 -10 -10 ------- Run | Yrd Mat Sub Combat Hostiles Destroyed 13 | . 12 1 Guns 5 | . 5 . AOE 8 | . 7 1 Classes Destroyed 8 | 2 5 1 Worker 1 | . 1 . Builder 1 | . 1 . Tunneler 2 | 2 . . Recycler 1 | 1 . . Operator 1 | . 1 . Swarmer 3 | . 3 . Grunt 9 | . 9 . Subdweller 1 | . . 1 Best Kill Streak 6 | 3 6 1 Combat Bots Only 4 | . 4 1 Max Kills in Single Turn 3 | 1 3 1 Gunslinging . | . . . Exploded 3 | . 3 1 Melee . | . . . Uniques/NPCs Destroyed . | . . . Combat | -11 -10 -10 -------- Run | Yrd Mat Sub Hostile Shots Fired 70 | . 66 4 Missed 14 | . 12 2 Damage Taken 691 | . 649 42 Core 256 | . 236 20 Absorbed by Shields . | . . . Regen/Repaired (Parts) 9 | . 9 . Core Remaining (%) 100 | 100 . . Volleys Fired 60 | 13 44 3 Largest 2 | 2 2 2 Hottest 60 | 40 40 60 Shots Fired 111 | 26 79 6 Gun 100 | 26 70 4 Cannon . | . . . Launcher 11 | . 9 2 Special . | . . . Kinetic 99 | 26 70 3 Thermal . | . . . Explosive 11 | . 9 2 Electromagnetic 1 | . . 1 Robot Hit Streak 13 | 5 12 13 Robot Miss Streak 5 | 4 5 1 Penetration Max . | . . . Secondary Targets 1 | . 1 . Max Gunslinging Chain 1 | . 1 . Shots Hit Robots 71 | 16 53 2 Core Hits 38 | 6 31 1 Critical Kills . | . . . Critical Parts Destroyed 2 | 1 1 . Critical Strikes 2 | 1 1 . Destroy 2 | 1 1 . Melee Attacks . | . . . Impact . | . . . Slashing . | . . . Piercing . | . . . Sneak Attacks . | . . . Combat Hostiles . | . . . Follow-up Attacks . | . . . Damage Inflicted 1202 | 144 1000 58 Guns 521 | 144 377 . Cannons . | . . . Explosions 681 | . 623 58 Melee . | . . . Ramming . | . . . Kinetic 521 | 144 377 . Thermal . | . . . Explosive 659 | . 601 58 Electromagnetic 22 | . 22 . Impact . | . . . Slashing . | . . . Piercing . | . . . Highest Corruption . | . . . Average Corruption . | . . . Corruption Purged . | . . . Corruption Blocked . | . . . Overload Shots . | . . . Overflow Damage 17 | . 17 . Projectiles . | . . . Explosions 17 | . 17 . Melee . | . . . Knockbacks . | . . . Impact . | . . . Kinetic . | . . . Secondary . | . . . Self-Inflicted Damage 23 | . 23 . Shots 1 | . 1 . Rammed . | . . . Targets Rammed . | . . . Kicked . | . . . Crushed . | . . . Highest Temperature 55 | . 55 . Average Temperature 15 | . 15 . Received Heat Transfer 369 | . 369 . Siege Activations . | . . . Robots Corrupted . | . . . Combat Hostiles . | . . . Parts Fried . | . . . Impact Corruptions . | . . . Robots Melted . | . . . Combat Hostiles . | . . . Parts Melted . | . . . Heat Transferred . | . . . Parts Sabotaged . | . . . Parts Stolen . | . . . Parts Stripped . | . . . Power Chain Reactions . | . . . Alert | -11 -10 -10 ------- Run | Yrd Mat Sub Peak Influence 272 | 15 272 . Initial 9 | . 9 . Average 109 | 3 122 . Maximum Alert Level 1 | . 1 . Low Security (%) 66 | 100 61 . Level 1 33 | . 38 . Level 2 . | . . . Level 3 . | . . . Level 4 . | . . . Level 5 . | . . . High Security . | . . . Max Security . | . . . Squads Dispatched 3 | . 3 . Investigation 1 | . 1 . Extermination . | . . . Reinforcement 2 | . 2 . Assault . | . . . Garrison . | . . . Intercept . | . . . Searches Triggered . | . . . Construction Impeded . | . . . Haulers Reinforced . | . . . Active Scanning Responses . | . . . Cargo Convoy Interrupts . | . . . Stealth | -11 -10 -10 --------- Run | Yrd Mat Sub Distress Signals . | . . . Communications Jammed . | . . . Distress Signals . | . . . Times Spotted 18 | . 16 2 Peak Tracking Total 6 | . 6 1 Tactical Retreats . | . . . Traps | -11 -10 -10 ------- Run | Yrd Mat Sub Traps Triggered . | . . . Indirectly . | . . . Trap Hack Attempts . | . . . Triggered . | . . . Disarmed . | . . . Reprogrammed . | . . . Reused . | . . . Traps Extracted . | . . . Installed . | . . . Triggered . | . . . Machines | -11 -10 -10 ---------- Run | Yrd Mat Sub Machines Disabled 1 | . 1 . Max in Single Turn 1 | . 1 . Machines Repaired . | . . . Machines Dismantled . | . . . Machines Sabotaged . | . . . Overloaded Fab Kills . | . . . Hacking | -11 -10 -10 --------- Run | Yrd Mat Sub Machines Accessed 4 | . 4 . Terminals 3 | . 3 . Fabricators . | . . . Repair Stations 1 | . 1 . Recycling Units . | . . . Scanalyzers . | . . . Garrison Access . | . . . Total Hacks 12 | . 12 . Successful 6 | . 6 . Failed 6 | . 6 . Catastrophic . | . . . Database Lockouts . | . . . Manual 8 | . 8 . Terminals 10 | . 10 . Fabricators . | . . . Repair Stations 2 | . 2 . Recycling Units . | . . . Scanalyzers . | . . . Garrison Access . | . . . Terminal Hacks 2 | . 2 . Zone Layout 2 | . 2 . Fabricator Hacks . | . . . Repair Station Hacks 2 | . 2 . Scan Component 1 | . 1 . Repair 1 | . 1 . Recycling Unit Hacks . | . . . Scanalyzer . | . . . Garrison Access Hacks . | . . . Unauthorized Hacks 2 | . 2 . Terminals 2 | . 2 . Botnet 2 | . 2 . Fabricators . | . . . Repair Stations . | . . . Recycling Units . | . . . Scanalyzers . | . . . Garrison Access . | . . . Data Cores Recovered . | . . . Used . | . . . Hacking Detections 3 | . 3 . Full Trace Events 1 | . 1 . Feedback Events . | . . . Feedback Blocked . | . . . Robot Schematics Acquired . | . . . Robots Built . | . . . Authchips . | . . . Time . | . . . Total Robot Build Rating . | . . . Part Schematics Acquired . | . . . Parts Built . | . . . Authchips . | . . . Time . | . . . Total Part Build Rating . | . . . Parts Repaired 1 | . 1 . Time 38 | . 38 . Parts Recycled . | . . . Recycled Matter . | . . . Retrieved Matter . | . . . Retrieved Components . | . . . Parts Scanalyzed . | . . . Part Schematics Acquired . | . . . Parts Damaged . | . . . Bothacking | -11 -10 -10 ------------ Run | Yrd Mat Sub Used RIF Installer . | . . . Robots Hacked . | . . . Non-combat . | . . . Combat . | . . . Robot Hacks Applied . | . . . Relay Couplers Released . | . . . Fabnet Peak Effective % . | . . . Robots Rewired . | . . . Allies Hacked . | . . . Hacks Repelled . | . . . Allies | -11 -10 -10 -------- Run | Yrd Mat Sub Total Allies . | . . . Largest Group . | . . . Highest-Rated Group . | . . . Highest-Rated Ally . | . . . Total Orders . | . . . Ally Attacks . | . . . Total Damage . | . . . Kills . | . . . Allies Corrupted . | . . . Allies Melted . | . . . Intel | -11 -10 -10 ------- Run | Yrd Mat Sub Robot Analysis Total . | . . . Derelict Logs Recovered . | . . . Drone Launches . | . . . Drone Recoveries . | . . . Exploration | -11 -10 -10 ------------- Run | Yrd Mat Sub Turns Passed 1391 | 133 1073 185 Spaces Moved 557 | 68 362 127 Core 8 | 5 3 . Treads . | . . . Legs 549 | 63 359 127 Wheels . | . . . Hover . | . . . Flight . | . . . Fastest Speed 50 | 50 100 120 Average Speed 119 | 114 119 120 Slowest Speed 120 | 120 120 120 Overloaded Moves . | . . . Propulsion Burnouts . | . . . Robots Hopped . | . . . Cave-ins Triggered . | . . . Exploration Rate (%) 22 | 4 52 12 Regions Visited 2 Branch Regions 1 Pre-discovered Areas . | . . . Known Exits Taken . | . . . Unknown Exits Taken 2 | 1 1 . Scrap Searched 1 | . . 1 Spaces Dug . | . . . Terrain Destroyed 57 | . 54 3 Melee . | . . . Projectile . | . . . AOE 57 | . 54 3 Terrain Rammed . | . . . Walls Destroyed . | . . . Machines Disabled . | . . . Actions | -11 -10 -10 --------- Run | Yrd Mat Sub Total 1187 | 98 936 153 Wait 536 | 5 510 21 Move 555 | 67 361 127 Hop . | . . . Pick Up 8 | 6 2 . Fast Attach 11 | 7 4 . Attach 1 | . 1 . Detach . | . . . Swap 9 | . 7 2 Drop 7 | . 7 . Fire 60 | 13 44 3 Melee . | . . . Ram . | . . . Kick . | . . . Crush . | . . . Escape Stasis . | . . . Rewire . | . . . Trap . | . . . Miscellaneous . | . . . Route ------- -11/Scrapyard -10/Materials (discovered 4 exits: [*Mat x2] / [Min] / [*Sub]) -10/Subcaves History --------- Turn | Location | Event 12 | -11/Scrapyard | Discovered new exit (range 15) 134 | -11/Scrapyard | Entered Materials 247 | -10/Materials | Repaired Imp. Terrain Scanner 308 | -10/Materials | Build established: Mutant 430 | -10/Materials | Discovered new exit (range 14) 589 | -10/Materials | Core integrity fell below 50% 613 | -10/Materials | Core integrity fell below 20% 627 | -10/Materials | Discovered new exit (range 16) 783 | -10/Materials | Discovered new exit (range 7) 879 | -10/Materials | Build established: Scavenger-Mutant 1142 | -10/Materials | Discovered new exit (range 13) 1207 | -10/Materials | Entered Subcaves 1237 | -10/Subcaves | A swath of the cavern ceiling suddenly collapsed 1387 | -10/Subcaves | Disturbed a concealed Subdweller 1392 | -10/Subcaves | Destroyed by JB-F5G(R) with Subdweller Machine Gun Last Messages --------------- 01195_ U-05 Engineer lays Concrete. 01195_ U-05 Engineer builds a Wall. 01197_ U-05 Engineer lays Concrete. 01198_ U-05 Engineer builds a Wall. LOCATION=UNKNOWN AMBIENT_HEAT=-10 GOAL=ESCAPE A swath of the cavern ceiling suddenly collapses. 01303_ TP-AZY(u) builds Twisted Machinery. 01363_ DZ-TYZ(R) destroyed. 01371_ Acquired 20 matter. 01382_ Subatomizers dissect the Sub. Monowheel. 01383_ TP-AZY(u) builds Twisted Machinery. 01387_ JB-F5G(R) angrily emerges from the Twisted Machinery. 01387_ Searching scrap... 01387_ Found Battle Cannon. 01387_ Found Multitool. 01387_ Found 32 Matter. 01388_ Acquired 32 matter. 01391_ The unstable cave ceiling collapses. Map ----- +----------------------------------------------------+ | ???## ?????# ###??#????????????????????????? | | ???# #???# #?#???????????????????????????? | | ???# ##### #???#?????????????????????????? | | #### #?#?????#?????????????????????? | | # #?????????????????????????????? | | ###?#?????????????????????????? | | ## ##?????#??????????????????????? | | ?## #????##?#????#????????????????? | | ??## ###?#???##???##????????????????? | | ???# ####?#?###?##?????????????????????? | | # ## ##?###??##??#?#???????????????????? | | # ## ##?###??##???#????#??????????????? | | ## #?#?###??###?#??#?#?????????????? | | ## #### #??#######?####?????????????????? | | ?## ##### ####?######?#??#?????????????????? | | ??## #?### ###??##?####?#???????#????????????? | | ???## ?### #??######?#??#??#??#?#???????????? | | ????## # ###?#?#?##?###??#?????#????#??????? | | ????## ###?#?##?###?####?#??#???????????? | | ???# ### ##############?##??##?????????????? | | ? ??## #### ##?###????#??????????? | | ? ## # #### ##?####?#???????????? | | ? ## # ##$<## ######???#????#?????? | | ? # ##<$$<# ###??????#??????????? | | ?? #<$$<<# #####?##????????????? | | ? ##